{"text_format":"3","workbook":"xlsx","n_sheets":9,"sheets":["Samenvatting werkzaamheden","Totaal overzicht","2023","2022","2021","2020","2019","2018","Verwijsblad"],"not_rendered":{"images":1},"read":"whole","date_system":"1900"}

{"sheet":"Samenvatting werkzaamheden","index":0,"n_rows":18,"n_cols":2,"rows_kept":18}
["Versie 5 (01-10-2022)"]
["Samenvatting van medisch immunologische werkzaamheden in de laatste 5 jaar "]
[]
[]
["Naam:"]
["Instelling:"]
["Adres:"]
[]
[]
[]
[null,"Samenvatting werkzaamheden afgelopen 5 jaar:"]
[]
["Dubbelklik in veld hiernaast:      à"]
["•  ter plekke invullen, of"]
["•  plak hier een bestaand WORD bestand in"]
[]
[]
["Eisen voor herregistraatie, vastgeleg in artikel 11 Opleidingseisen Medische Immunologie:\nDe registratie wordt telkens verstrekt voor een periode van 5 jaar. \nHerregistratie door de COR kan plaatsvinden indien betrokkene ten minste 16 uur per week als laboratoriumspecialist medisch immunologie in het vakgebied werkzaam is geweest (gemiddeld over 5 jaar) en ten minste 200 geaccrediteerde uren bij- en nascholing heeft gevolgd per 5 jaar. \nRegistratie komt te vervallen indien de betrokkene voor een periode van langer dan 3 jaar niet in het vakgebied werkzaam is geweest. De betrokkene wordt dan geregistreerd als niet-praktiserend laboratoriumspecialist medisch immunologie."]

{"sheet":"Totaal overzicht","index":1,"n_rows":18,"n_cols":7,"rows_kept":18,"merged":[[2,6,2,7],[15,0,15,6],[17,0,17,6]]}
["Totaal overzicht behaalde punten",null,null,"Getallen worden uit de \"jaar\" tabbladen gehaald"]
[]
[null,"Categorie A\ntotaal gedaan","Categorie A\nMin. 150 per 5 jaar\nMax. 60 per jaar","Categorie B\nMax. 50 per 5 jaar","Totaal behaalde punten\nCategorie A+B","Totaal behaalde geldige punten\nCategorie A+B","Blad is beveiligd!!!!!  "]
[null,null,60,50]
[{"$f":"'2018'!E1","v":2018},{"$f":"'2018'!F32","v":0},{"$f":"'2018'!F34","v":0},{"$f":"'2018'!H32","v":0},{"$f":"B5+D5","v":0}]
[{"$f":"'2019'!E1","v":2019},{"$f":"'2019'!F32","v":0},{"$f":"'2019'!F34","v":0},{"$f":"'2019'!H32","v":0},0]
[{"$f":"'2020'!E1","v":2020},{"$f":"'2020'!F32","v":0},{"$f":"'2020'!F34","v":0},{"$f":"'2020'!H32","v":0},0]
[{"$f":"'2021'!E1","v":2021},{"$f":"'2021'!F32","v":0},{"$f":"'2021'!F34","v":0},{"$f":"'2021'!H32","v":0},0]
[{"$f":"'2022'!E1","v":2022},{"$f":"'2022'!F32","v":0},{"$f":"'2022'!F34","v":0},{"$f":"'2022'!H32","v":0},{"$f":"B9+D9","v":0}]
[{"$f":"'2023'!E1","v":2023},{"$f":"'2023'!F32","v":0},{"$f":"'2023'!F34","v":0},{"$f":"'2023'!H32","v":0},{"$f":"B10+D10","v":0}]
["Totaal bruto:",{"$f":"SUM(B5:B10)","v":0},null,{"$f":"D10+D5+D6+D7+D8+D9","v":0},0]
["Totaal geldig over 5 jaar:",null,{"$f":"SUM(C5:C10)","v":0},{"$f":"IF(D11>=D4,D4,IF(D11<D4,D11))","v":0},null,{"$f":"C12+D12","v":0},{"$f":"IF(F12>=200,\"Voldoende punten\",\"Onvoldoende punten\")","v":"Onvoldoende punten"}]
[]
[]
["Puntenwaardering herregistratie:"]
["Het totaal aantal te verwerven punten bedraagt minimaal 200 punten per 5 jaar (minimaal 150 punten in categorie A), met een maximum van 60 punten per jaar.\nCategorie B: niet verplicht en een maximum van 50 punten per 5 jaar."]
[]
["Categorie A: (zie voor categorie onderverdeling op de \"jaar\" tabbladen)\nOmvat de door het CMI geaccrediteerde bij- en nascholingsactiviteiten gericht op het behouden en verwerven van de in de opleidingseisen Medische Immunologie vastgestelde competenties. Het betreft congressen, cursussen, workshops, firma gebruikersdagen, refereerbijeenkomsten met een vooraf opgesteld programma, wetenschappelijke onderdelen van de vergadering van een beroepsvereniging, en scholingsbijeenkomsten op het gebied van management, docentprofessionalisering (Teach the teacher, BKO), kwaliteit (auditor-opleiding en –nascholing), wet- en regelgeving (BROK)).\nAantal punten is gebaseerd op het feitelijke aantal uren inhoudelijke bij- en nascholing (1 punt per uur, met een maximum van 6 punten per dag; een meerdaagse activiteit levert maximaal 24 punten op).\nActiviteiten die geaccrediteerd zijn door andere beroepsverenigingen dienen voorgelegd te worden aan het CMI, dat zal toetsen of de inhoud voldoende raakvlakken vertoont met de vereisten voor accreditatie door het CMI.\nBeoordeling van aanvragen tot accreditatie vindt plaats door een commissie bestaande uit twee bestuursleden van het CMI en één lid van de COR.\n \nCategorie B: (zie voor specificatie op de \"jaar\" tabbladen)\nDeze categorie is niet verplicht en kan maximaal 50 punten per 5 jaar opleveren. Het betreft individuele activiteiten gericht op het verspreiden van (medisch) immunologische kennis, uitvoeren van audits of deel uitmaken van commissies of besturen die ten goede komen aan de beroepsgroep in den brede. \n"]

{"sheet":"2023","index":2,"n_rows":34,"n_cols":10,"rows_kept":34,"merged":[[3,9,37,9]]}
["Nascholing Medische Immunologie. ",{"$nulls":3},2023]
[]
["Datum","Locatie","Activiteit / onderwerp","Organisator","Categorie A","Aantal punten\nCategorie A","Categorie B","Aantal punten\nCategorie B",null,"Specificatie categorie A1, -2, -3, -4 en categorie B"]
[{"$nulls":9},"Categorie A1 \nBetreft: nationale symposia, master classes, kleine congressen etc. \n• Organiserende instantie vraagt per event punten aan bij CMI / COR. \n• Toekenning van evt. punten wordt gemeld aan organiserende instantie. \n• Registratie van toegekende punten komt op de CMI website. \nCategorie A2 \nBetreft: internationale congressen, symposia, meetings etc. \n• CMI / COR zullen een lijst aanleggen van de belangrijkste internationale congressen binnen de pijlers van de medische immunologie. \n• Registratie van toegekende punten voor deze congressen komt op de CMI website. \n• Congressen die niet op deze lijst staan kunnen aangemeld worden voor accreditatiepunten, waarna betreffende punten op de CMI website zullen worden vermeld. \nCategorie A3 \nBetreft: lokale refereerbijenkomsten, seminars etc. (programma’s, agenda’s etc. kunnen op verzoek van de COR worden opgevraagd). \n• Algemene regel: 1 punt per uur. \nCategorie A4 \nBetreft: overige activiteiten, zoals bijv. cursus, waarvoor punten kunnen worden gehaald. \n• Voorleggen aan bestuur CMI / COR via mail naar secretaris CMI bestuur. \n• Toekenning van punten op individuele basis. \n• Geen registratie van toegekende punten op CMI website. \n\nCategorie B\n• * Het schrijven van een vakinhoudelijke richtlijn die wordt geaccordeerd door het CMI (10 punten per richtlijn). \n• * Het schrijven van een hoofdstuk in een leerboek medische immunologie (1e auteur 10 punten, 2e en laatste auteurs 5 punten, overige auteurs 2 punten).\n• * Het schrijven van een artikel in een peer-reviewed tijdschrift over een medisch immunologisch onderwerp (1e auteur 10 punten, 2e en laatste auteur 5 punten, overige auteurs 2 punten).\n* Format: zoals aangeleverd aan CMI (in PubMed zoeken, Save, Create file, tekst kopieren en plakken in deze Excel file).\n• Het zijn van redactielid/editor van een vakinhoudelijk tijdschrift (10 punten per jaar).\n• Het organiseren en geven van immunologisch onderwijs (bv blokcoördinator, opzetten van een blok). Niet: het geven van losse uren onderwijs of presentaties (5 punten per jaar). \n• Het uitvoeren van audits en visitaties zoals ISO15189 audits, EFI inspections, opleidingsvisitaties (per activiteit 2 punten, maximaal 4 punten per jaar).\n• Het deelnemen door CMI-leden aan commissies, werkgroepen of besturen ten behoeve van de beroepsgroep (per commissie/\nwerkgroep/bestuur 2 punten, maximaal 4 punten per jaar).\n"]
{"$rows_empty":27}
["Totaal behaald per categorie A en B in:",null,null,{"$f":"E1","v":2023},null,{"$f":"SUM(F4:F30)","v":0},null,{"$f":"SUM(H4:H30)","v":0}]
["Maximaal aantal punten geldig per jaar voor categorie A:",{"$nulls":4},60]
["Totaal nascholingspunten per categorie in:",null,null,{"$f":"E1","v":2023},null,{"$f":"IF(F32>F33,F33,IF(F32<=F33,F32))","v":0},null,{"$f":"H32","v":0}]

{"sheet":"2022","index":3,"n_rows":34,"n_cols":10,"rows_kept":34,"merged":[[3,9,37,9]]}
["Nascholing Medische Immunologie. ",{"$nulls":3},2022]
[]
["Datum","Locatie","Activiteit / onderwerp","Organisator","Categorie A","Aantal punten\nCategorie A","Categorie B","Aantal punten\nCategorie B",null,"Specificatie categorie A1, -2, -3, -4 en categorie B"]
[{"$nulls":9},"Categorie A1 \nBetreft: nationale symposia, master classes, kleine congressen etc. \n• Organiserende instantie vraagt per event punten aan bij CMI / COR. \n• Toekenning van evt. punten wordt gemeld aan organiserende instantie. \n• Registratie van toegekende punten komt op de CMI website. \nCategorie A2 \nBetreft: internationale congressen, symposia, meetings etc. \n• CMI / COR zullen een lijst aanleggen van de belangrijkste internationale congressen binnen de pijlers van de medische immunologie. \n• Registratie van toegekende punten voor deze congressen komt op de CMI website. \n• Congressen die niet op deze lijst staan kunnen aangemeld worden voor accreditatiepunten, waarna betreffende punten op de CMI website zullen worden vermeld. \nCategorie A3 \nBetreft: lokale refereerbijenkomsten, seminars etc. (programma’s, agenda’s etc. kunnen op verzoek van de COR worden opgevraagd). \n• Algemene regel: 1 punt per uur. \nCategorie A4 \nBetreft: overige activiteiten, zoals bijv. cursus, waarvoor punten kunnen worden gehaald. \n• Voorleggen aan bestuur CMI / COR via mail naar secretaris CMI bestuur. \n• Toekenning van punten op individuele basis. \n• Geen registratie van toegekende punten op CMI website. \n\nCategorie B\n• * Het schrijven van een vakinhoudelijke richtlijn die wordt geaccordeerd door het CMI (10 punten per richtlijn). \n• * Het schrijven van een hoofdstuk in een leerboek medische immunologie (1e auteur 10 punten, 2e en laatste auteurs 5 punten, overige auteurs 2 punten).\n• * Het schrijven van een artikel in een peer-reviewed tijdschrift over een medisch immunologisch onderwerp (1e auteur 10 punten, 2e en laatste auteur 5 punten, overige auteurs 2 punten).\n* Format: zoals aangeleverd aan CMI (in PubMed zoeken, Save, Create file, tekst kopieren en plakken in deze Excel file).\n• Het zijn van redactielid/editor van een vakinhoudelijk tijdschrift (10 punten per jaar).\n• Het organiseren en geven van immunologisch onderwijs (bv blokcoördinator, opzetten van een blok). Niet: het geven van losse uren onderwijs of presentaties (5 punten per jaar). \n• Het uitvoeren van audits en visitaties zoals ISO15189 audits, EFI inspections, opleidingsvisitaties (per activiteit 2 punten, maximaal 4 punten per jaar).\n• Het deelnemen door CMI-leden aan commissies, werkgroepen of besturen ten behoeve van de beroepsgroep (per commissie/\nwerkgroep/bestuur 2 punten, maximaal 4 punten per jaar).\n"]
{"$rows_empty":27}
["Totaal behaald per categorie A en B in:",null,null,{"$f":"E1","v":2022},null,{"$f":"SUM(F4:F30)","v":0},null,{"$f":"SUM(H4:H30)","v":0}]
["Maximaal aantal punten geldig per jaar voor categorie A:",{"$nulls":4},60]
["Totaal nascholingspunten per categorie in:",null,null,{"$f":"E1","v":2022},null,{"$f":"IF(F32>F33,F33,IF(F32<=F33,F32))","v":0},null,{"$f":"H32","v":0}]

{"sheet":"2021","index":4,"n_rows":34,"n_cols":10,"rows_kept":34,"merged":[[3,9,37,9]]}
["Nascholing Medische Immunologie. ",{"$nulls":3},2021]
[]
["Datum","Locatie","Activiteit / onderwerp","Organisator","Categorie A","Aantal punten\nCategorie A","Categorie B","Aantal punten\nCategorie B",null,"Specificatie categorie A1, -2, -3, -4 en categorie B"]
[{"$nulls":9},"Categorie A1 \nBetreft: nationale symposia, master classes, kleine congressen etc. \n• Organiserende instantie vraagt per event punten aan bij CMI / COR. \n• Toekenning van evt. punten wordt gemeld aan organiserende instantie. \n• Registratie van toegekende punten komt op de CMI website. \nCategorie A2 \nBetreft: internationale congressen, symposia, meetings etc. \n• CMI / COR zullen een lijst aanleggen van de belangrijkste internationale congressen binnen de pijlers van de medische immunologie. \n• Registratie van toegekende punten voor deze congressen komt op de CMI website. \n• Congressen die niet op deze lijst staan kunnen aangemeld worden voor accreditatiepunten, waarna betreffende punten op de CMI website zullen worden vermeld. \nCategorie A3 \nBetreft: lokale refereerbijenkomsten, seminars etc. (programma’s, agenda’s etc. kunnen op verzoek van de COR worden opgevraagd). \n• Algemene regel: 1 punt per uur. \nCategorie A4 \nBetreft: overige activiteiten, zoals bijv. cursus, waarvoor punten kunnen worden gehaald. \n• Voorleggen aan bestuur CMI / COR via mail naar secretaris CMI bestuur. \n• Toekenning van punten op individuele basis. \n• Geen registratie van toegekende punten op CMI website. \n\nCategorie B\n• * Het schrijven van een vakinhoudelijke richtlijn die wordt geaccordeerd door het CMI (10 punten per richtlijn). \n• * Het schrijven van een hoofdstuk in een leerboek medische immunologie (1e auteur 10 punten, 2e en laatste auteurs 5 punten, overige auteurs 2 punten).\n• * Het schrijven van een artikel in een peer-reviewed tijdschrift over een medisch immunologisch onderwerp (1e auteur 10 punten, 2e en laatste auteur 5 punten, overige auteurs 2 punten).\n* Format: zoals aangeleverd aan CMI (in PubMed zoeken, Save, Create file, tekst kopieren en plakken in deze Excel file).\n• Het zijn van redactielid/editor van een vakinhoudelijk tijdschrift (10 punten per jaar).\n• Het organiseren en geven van immunologisch onderwijs (bv blokcoördinator, opzetten van een blok). Niet: het geven van losse uren onderwijs of presentaties (5 punten per jaar). \n• Het uitvoeren van audits en visitaties zoals ISO15189 audits, EFI inspections, opleidingsvisitaties (per activiteit 2 punten, maximaal 4 punten per jaar).\n• Het deelnemen door CMI-leden aan commissies, werkgroepen of besturen ten behoeve van de beroepsgroep (per commissie/\nwerkgroep/bestuur 2 punten, maximaal 4 punten per jaar).\n"]
{"$rows_empty":27}
["Totaal behaald per categorie A en B in:",null,null,{"$f":"E1","v":2021},null,{"$f":"SUM(F4:F30)","v":0},null,{"$f":"SUM(H4:H30)","v":0}]
["Maximaal aantal punten geldig per jaar voor categorie A:",{"$nulls":4},60]
["Totaal nascholingspunten per categorie in:",null,null,{"$f":"E1","v":2021},null,{"$f":"IF(F32>F33,F33,IF(F32<=F33,F32))","v":0},null,{"$f":"H32","v":0}]

{"sheet":"2020","index":5,"n_rows":34,"n_cols":10,"rows_kept":34,"merged":[[3,9,37,9]]}
["Nascholing Medische Immunologie. ",{"$nulls":3},2020]
[]
["Datum","Locatie","Activiteit / onderwerp","Organisator","Categorie A","Aantal punten\nCategorie A","Categorie B","Aantal punten\nCategorie B",null,"Specificatie categorie A1, -2, -3, -4 en categorie B"]
[{"$nulls":9},"Categorie A1 \nBetreft: nationale symposia, master classes, kleine congressen etc. \n• Organiserende instantie vraagt per event punten aan bij CMI / COR. \n• Toekenning van evt. punten wordt gemeld aan organiserende instantie. \n• Registratie van toegekende punten komt op de CMI website. \nCategorie A2 \nBetreft: internationale congressen, symposia, meetings etc. \n• CMI / COR zullen een lijst aanleggen van de belangrijkste internationale congressen binnen de pijlers van de medische immunologie. \n• Registratie van toegekende punten voor deze congressen komt op de CMI website. \n• Congressen die niet op deze lijst staan kunnen aangemeld worden voor accreditatiepunten, waarna betreffende punten op de CMI website zullen worden vermeld. \nCategorie A3 \nBetreft: lokale refereerbijenkomsten, seminars etc. (programma’s, agenda’s etc. kunnen op verzoek van de COR worden opgevraagd). \n• Algemene regel: 1 punt per uur. \nCategorie A4 \nBetreft: overige activiteiten, zoals bijv. cursus, waarvoor punten kunnen worden gehaald. \n• Voorleggen aan bestuur CMI / COR via mail naar secretaris CMI bestuur. \n• Toekenning van punten op individuele basis. \n• Geen registratie van toegekende punten op CMI website. \n\nCategorie B\n• * Het schrijven van een vakinhoudelijke richtlijn die wordt geaccordeerd door het CMI (10 punten per richtlijn). \n• * Het schrijven van een hoofdstuk in een leerboek medische immunologie (1e auteur 10 punten, 2e en laatste auteurs 5 punten, overige auteurs 2 punten).\n• * Het schrijven van een artikel in een peer-reviewed tijdschrift over een medisch immunologisch onderwerp (1e auteur 10 punten, 2e en laatste auteur 5 punten, overige auteurs 2 punten).\n* Format: zoals aangeleverd aan CMI (in PubMed zoeken, Save, Create file, tekst kopieren en plakken in deze Excel file).\n• Het zijn van redactielid/editor van een vakinhoudelijk tijdschrift (10 punten per jaar).\n• Het organiseren en geven van immunologisch onderwijs (bv blokcoördinator, opzetten van een blok). Niet: het geven van losse uren onderwijs of presentaties (5 punten per jaar). \n• Het uitvoeren van audits en visitaties zoals ISO15189 audits, EFI inspections, opleidingsvisitaties (per activiteit 2 punten, maximaal 4 punten per jaar).\n• Het deelnemen door CMI-leden aan commissies, werkgroepen of besturen ten behoeve van de beroepsgroep (per commissie/\nwerkgroep/bestuur 2 punten, maximaal 4 punten per jaar).\n"]
{"$rows_empty":27}
["Totaal behaald per categorie A en B in:",null,null,{"$f":"E1","v":2020},null,{"$f":"SUM(F4:F30)","v":0},null,{"$f":"SUM(H4:H30)","v":0}]
["Maximaal aantal punten geldig per jaar voor categorie A:",{"$nulls":4},60]
["Totaal nascholingspunten per categorie in:",null,null,{"$f":"E1","v":2020},null,{"$f":"IF(F32>F33,F33,IF(F32<=F33,F32))","v":0},null,{"$f":"H32","v":0}]

{"sheet":"2019","index":6,"n_rows":34,"n_cols":10,"rows_kept":34,"merged":[[3,9,37,9]]}
["Nascholing Medische Immunologie. ",{"$nulls":3},2019]
[]
["Datum","Locatie","Activiteit / onderwerp","Organisator ","Categorie A","Aantal punten\nCategorie A","Categorie B","Aantal punten\nCategorie B",null,"Specificatie categorie A1, -2, -3, -4 en categorie B"]
[{"$nulls":9},"Categorie A1 \nBetreft: nationale symposia, master classes, kleine congressen etc. \n• Organiserende instantie vraagt per event punten aan bij CMI / COR. \n• Toekenning van evt. punten wordt gemeld aan organiserende instantie. \n• Registratie van toegekende punten komt op de CMI website. \nCategorie A2 \nBetreft: internationale congressen, symposia, meetings etc. \n• CMI / COR zullen een lijst aanleggen van de belangrijkste internationale congressen binnen de pijlers van de medische immunologie. \n• Registratie van toegekende punten voor deze congressen komt op de CMI website. \n• Congressen die niet op deze lijst staan kunnen aangemeld worden voor accreditatiepunten, waarna betreffende punten op de CMI website zullen worden vermeld. \nCategorie A3 \nBetreft: lokale refereerbijenkomsten, seminars etc. (programma’s, agenda’s etc. kunnen op verzoek van de COR worden opgevraagd). \n• Algemene regel: 1 punt per uur. \nCategorie A4 \nBetreft: overige activiteiten, zoals bijv. cursus, waarvoor punten kunnen worden gehaald. \n• Voorleggen aan bestuur CMI / COR via mail naar secretaris CMI bestuur. \n• Toekenning van punten op individuele basis. \n• Geen registratie van toegekende punten op CMI website. \n\nCategorie B\n• * Het schrijven van een vakinhoudelijke richtlijn die wordt geaccordeerd door het CMI (10 punten per richtlijn). \n• * Het schrijven van een hoofdstuk in een leerboek medische immunologie (1e auteur 10 punten, 2e en laatste auteurs 5 punten, overige auteurs 2 punten).\n• * Het schrijven van een artikel in een peer-reviewed tijdschrift over een medisch immunologisch onderwerp (1e auteur 10 punten, 2e en laatste auteur 5 punten, overige auteurs 2 punten).\n* Format: zoals aangeleverd aan CMI (in PubMed zoeken, Save, Create file, tekst kopieren en plakken in deze Excel file).\n• Het zijn van redactielid/editor van een vakinhoudelijk tijdschrift (10 punten per jaar).\n• Het organiseren en geven van immunologisch onderwijs (bv blokcoördinator, opzetten van een blok). Niet: het geven van losse uren onderwijs of presentaties (5 punten per jaar). \n• Het uitvoeren van audits en visitaties zoals ISO15189 audits, EFI inspections, opleidingsvisitaties (per activiteit 2 punten, maximaal 4 punten per jaar).\n• Het deelnemen door CMI-leden aan commissies, werkgroepen of besturen ten behoeve van de beroepsgroep (per commissie/\nwerkgroep/bestuur 2 punten, maximaal 4 punten per jaar).\n"]
{"$rows_empty":27}
["Totaal behaald per categorie A en B in:",null,null,{"$f":"E1","v":2019},null,{"$f":"SUM(F4:F30)","v":0},null,{"$f":"SUM(H4:H30)","v":0}]
["Maximaal aantal punten geldig per jaar voor categorie A:",{"$nulls":4},60]
["Totaal nascholingspunten per categorie in:",null,null,{"$f":"E1","v":2019},null,{"$f":"IF(F32>F33,F33,IF(F32<=F33,F32))","v":0},null,{"$f":"H32","v":0}]

{"sheet":"2018","index":7,"n_rows":34,"n_cols":10,"rows_kept":34,"merged":[[3,9,37,9]]}
["Nascholing Medische Immunologie. ",{"$nulls":3},2018]
[]
["Datum","Locatie","Activiteit / onderwerp","Organisator","Categorie A","Aantal punten\nCategorie A","Categorie B","Aantal punten\nCategorie B",null,"Specificatie categorie A1, -2, -3, -4 en categorie B"]
[{"$nulls":9},"Categorie A1 \nBetreft: nationale symposia, master classes, kleine congressen etc. \n• Organiserende instantie vraagt per event punten aan bij CMI / COR. \n• Toekenning van evt. punten wordt gemeld aan organiserende instantie. \n• Registratie van toegekende punten komt op de CMI website. \nCategorie A2 \nBetreft: internationale congressen, symposia, meetings etc. \n• CMI / COR zullen een lijst aanleggen van de belangrijkste internationale congressen binnen de pijlers van de medische immunologie. \n• Registratie van toegekende punten voor deze congressen komt op de CMI website. \n• Congressen die niet op deze lijst staan kunnen aangemeld worden voor accreditatiepunten, waarna betreffende punten op de CMI website zullen worden vermeld. \nCategorie A3 \nBetreft: lokale refereerbijenkomsten, seminars etc. (programma’s, agenda’s etc. kunnen op verzoek van de COR worden opgevraagd). \n• Algemene regel: 1 punt per uur. \nCategorie A4 \nBetreft: overige activiteiten, zoals bijv. cursus, waarvoor punten kunnen worden gehaald. \n• Voorleggen aan bestuur CMI / COR via mail naar secretaris CMI bestuur. \n• Toekenning van punten op individuele basis. \n• Geen registratie van toegekende punten op CMI website. \n\nCategorie B\n• * Het schrijven van een vakinhoudelijke richtlijn die wordt geaccordeerd door het CMI (10 punten per richtlijn). \n• * Het schrijven van een hoofdstuk in een leerboek medische immunologie (1e auteur 10 punten, 2e en laatste auteurs 5 punten, overige auteurs 2 punten).\n• * Het schrijven van een artikel in een peer-reviewed tijdschrift over een medisch immunologisch onderwerp (1e auteur 10 punten, 2e en laatste auteur 5 punten, overige auteurs 2 punten).\n* Format: zoals aangeleverd aan CMI (in PubMed zoeken, Save, Create file, tekst kopieren en plakken in deze Excel file).\n• Het zijn van redactielid/editor van een vakinhoudelijk tijdschrift (10 punten per jaar).\n• Het organiseren en geven van immunologisch onderwijs (bv blokcoördinator, opzetten van een blok). Niet: het geven van losse uren onderwijs of presentaties (5 punten per jaar). \n• Het uitvoeren van audits en visitaties zoals ISO15189 audits, EFI inspections, opleidingsvisitaties (per activiteit 2 punten, maximaal 4 punten per jaar).\n• Het deelnemen door CMI-leden aan commissies, werkgroepen of besturen ten behoeve van de beroepsgroep (per commissie/\nwerkgroep/bestuur 2 punten, maximaal 4 punten per jaar).\n"]
{"$rows_empty":27}
["Totaal behaald per categorie A en B in:",null,null,{"$f":"E1","v":2018},null,{"$f":"SUM(F4:F30)","v":0},null,{"$f":"SUM(H4:H30)","v":0}]
["Maximaal aantal punten geldig per jaar voor categorie A:",{"$nulls":4},60]
["Totaal nascholingspunten per categorie in:",null,null,{"$f":"E1","v":2018},null,{"$f":"IF(F32>F33,F33,IF(F32<=F33,F32))","v":0},null,{"$f":"H32","v":0}]

{"sheet":"Verwijsblad","index":8,"n_rows":6,"n_cols":1,"rows_kept":6,"hidden":true}
["A1"]
["A2"]
["A3"]
["A4"]
[]
["B"]